Cogmind - Beta 13 @@@ ROGUE MODE // 2024.07.07 @ 20:02:09 Player: APerTAS Result: Destroyed by BJ-AHA(R) with Subdweller Beam Cannon Performance ------------- Evolutions (0) 0 Regions Visited (3) 600 Robots Destroyed (26) 130 Value Destroyed (727) 727 Prototype IDs (0) 0 Alien Tech Used (0) 0 Bonus (-332) -332 TOTAL SCORE: 1125 Bonus ------- Friendly Fire -332 Cogmind --------- Core Integrity 0/250 Matter 230/300 Energy 100/100 System Corruption 0% Temperature Cool (9) Movement Core (450) Ox8 Location -10/Subcaves Parts ------- > --- POWER (1) -------- (None) > --- PROPULSION (2) --- (None) > --- UTILITY (2) ------ Large Storage Unit Signal Interpreter > --- WEAPON (2) ------- Particle Gun Makeshift Spear > --- INVENTORY (15) --- Light Treads Compact Wheel Hover Unit Improved Heat Sink High-capacity Battery (250) High-capacity Matter Pod (95) Structural Scanner Scrap Shield Hacking Suite Mining Laser Mining Claw Peak State ------------ > --- POWER ------------ Ion Engine > --- PROPULSION ------- Armored Wheel Armored Wheel > --- UTILITY ---------- Large Storage Unit Signal Interpreter > --- WEAPON ----------- Improved Light Cannon Makeshift Spear > --- INVENTORY -------- Light Treads Compact Wheel Hover Unit Improved Heat Sink High-capacity Battery High-capacity Matter Pod Structural Scanner Scrap Shield Hacking Suite Particle Gun Mining Laser Mining Claw [Rating: 15] Favorites ----------- Power Ion Engine Engine Ion Engine Propulsion Light Treads Treads Light Treads Wheel Armored Wheel Utility Large Storage Unit Storage Large Storage Unit Processor Signal Interpreter Weapon Medium Laser Energy Gun Medium Laser Ballistic Cannon Improved Light Cannon Launcher Rocket Launcher Special Weapon Mining Laser Impact Weapon Hammer Slashing Weapon Mining Claw Piercing Weapon Makeshift Spear Build | -11 -10 -10 -10 ------- Run | Yrd Mat Min Sub Slots Evolved . | . . . . Power . | . . . . Propulsion . | . . . . Utility . | . . . . Weapon . | . . . . Parts Attached 24 | 6 12 . 6 Power 3 | 1 1 . 1 Engine 3 | 1 1 . 1 Core . | . . . . Reactor . | . . . . Propulsion 5 | 2 3 . . Treads 2 | 2 . . . Leg . | . . . . Wheel 3 | . 3 . . Hover . | . . . . Flight . | . . . . Utility 3 | 1 2 . . Device . | . . . . Storage 2 | 1 1 . . Processor 1 | . 1 . . Hackware . | . . . . Protection . | . . . . Artifact . | . . . . Weapon 13 | 2 6 . 5 Energy Gun 5 | 2 2 . 1 Energy Cannon . | . . . . Ballistic Gun . | . . . . Ballistic Cannon 3 | . 2 . 1 Launcher 1 | . 1 . . Special Weapon 1 | . . . 1 Impact Weapon 1 | . 1 . . Slashing Weapon 1 | . . . 1 Piercing Weapon 1 | . . . 1 Special Melee Weapon . | . . . . Unidentified Prototypes . | . . . . Parts Lost 6 | . . . 6 Power 2 | . . . 2 Propulsion 2 | . . . 2 Utility . | . . . . Weapon 2 | . . . 2 Highest Loss Streak 6 | . . . 6 To Critical Strikes . | . . . . Average Slot Usage (%) 94 | . 93 100 94 Engine 13 | . 13 14 13 Treads 14 | . 20 . . Wheel 13 | . 7 28 24 Storage 14 | . 14 14 14 Processor 9 | . 7 14 14 Energy Gun 9 | . 12 . 4 Ballistic Cannon 11 | . 11 14 8 Launcher 5 | . 3 14 7 Naked Turns . | . . . . Heaviest Build 33 | 14 33 33 33 Greatest Support 40 | 40 40 24 24 Greatest Overweight (x) 9 | . 1 1 9 Average Overweight (x) . | . . 1 1 Largest Inventory Capacity 15 | 8 15 15 15 Average Capacity 14 | 7 14 15 15 Most Carried 15 | 3 15 15 15 Average Carried 9 | 1 8 14 13 Final Capacity 15 | 8 15 15 15 Final Carried 15 | 3 14 15 12 Class Distribution -------------------- 100% | Mutant Dominant Class ---------------- Mutant | -10/Materials Mutant | -10/Mines Mutant | -10/Subcaves Resources | -11 -10 -10 -10 ----------- Run | Yrd Mat Min Sub Matter Collected 765 | 229 361 151 24 Remotely . | . . . . Salvage Created 683 | . 375 42 266 Parts 43 | . 28 2 13 Haulers Intercepted . | . . . . Recyclers Shooed . | . . . . Parts Field Recycled . | . . . . Retrieved Matter . | . . . . Parts Self-Destructed . | . . . . Prevented . | . . . . Kills | -11 -10 -10 -10 ------- Run | Yrd Mat Min Sub Combat Hostiles Destroyed 19 | . 10 2 7 Guns 4 | . 3 . 1 Cannons 6 | . 6 . . AOE 9 | . 1 2 6 Classes Destroyed 8 | . 6 . 2 Worker 1 | . 1 . . Tunneler 1 | . 1 . . Operator 1 | . 1 . . Watcher 3 | . 3 . . Swarmer 3 | . 3 . . Grunt 9 | . 7 2 . Subdweller 7 | . . . 7 Guerrilla 1 | . . . 1 Best Kill Streak 6 | . 3 2 6 Combat Bots Only 6 | . 3 2 6 Max Kills in Single Turn 4 | . 2 1 4 Gunslinging . | . . . . Exploded 3 | . 1 1 3 Melee . | . . . . Uniques/NPCs Destroyed . | . . . . Combat | -11 -10 -10 -10 -------- Run | Yrd Mat Min Sub Hostile Shots Fired 97 | . 45 2 50 Missed 32 | . 13 1 18 Damage Taken 1218 | . 389 14 815 Core 269 | . 44 . 225 Absorbed by Shields . | . . . . Regen/Repaired (Parts) 27 | . 27 . . Core Remaining (%) 100 | 100 . . . Volleys Fired 42 | . 30 2 10 Largest 2 | . 2 2 2 Hottest 90 | . 90 72 72 Shots Fired 74 | . 57 4 13 Gun 37 | . 33 . 4 Cannon 28 | . 21 2 5 Launcher 9 | . 3 2 4 Special . | . . . . Kinetic 28 | . 21 2 5 Thermal 28 | . 24 . 4 Explosive 9 | . 3 2 4 Electromagnetic 9 | . 9 . . Robot Hit Streak 5 | . 5 5 4 Robot Miss Streak 5 | . 5 . 2 Penetration Max . | . . . . Secondary Targets 1 | . 1 . . Max Gunslinging Chain 1 | . 1 . . Shots Hit Robots 42 | . 31 4 7 Core Hits 46 | . 23 4 19 Critical Kills . | . . . . Critical Parts Destroyed . | . . . . Critical Strikes 2 | . 2 . . Burn 1 | . 1 . . Blast 1 | . 1 . . Melee Attacks 3 | . 3 . . Impact 3 | . 3 . . Slashing . | . . . . Piercing . | . . . . Sneak Attacks . | . . . . Combat Hostiles . | . . . . Follow-up Attacks . | . . . . Damage Inflicted 1692 | 3 618 154 917 Guns 278 | . 217 . 61 Cannons 320 | . 244 37 39 Explosions 1062 | . 128 117 817 Melee 26 | . 26 . . Ramming 6 | 3 3 . . Kinetic 320 | . 244 37 39 Thermal 224 | . 163 . 61 Explosive 1062 | . 128 117 817 Electromagnetic 54 | . 54 . . Impact 26 | . 26 . . Slashing . | . . . . Piercing . | . . . . Highest Corruption . | . . . . Average Corruption . | . . . . Corruption Purged . | . . . . Corruption Blocked . | . . . . Overload Shots . | . . . . Overflow Damage 8 | . . . 8 Projectiles . | . . . . Explosions 8 | . . . 8 Melee . | . . . . Knockbacks 7 | . 4 3 . Impact . | . . . . Kinetic 6 | . 4 2 . Secondary 1 | . . 1 . Self-Inflicted Damage 142 | . 37 . 105 Shots 4 | . 1 . 3 Rammed 2 | 1 1 . . Targets Rammed 2 | 1 1 . . Kicked . | . . . . Crushed . | . . . . Highest Temperature 273 | . 273 33 1 Average Temperature 67 | . 70 20 1 Received Heat Transfer 375 | . 156 9 210 Effects 2 | . 2 . . Energy Bleed 1 | . 1 . . Interference 1 | . 1 . . Siege Activations . | . . . . Robots Corrupted . | . . . . Combat Hostiles . | . . . . Parts Fried . | . . . . Impact Corruptions . | . . . . Robots Melted . | . . . . Combat Hostiles . | . . . . Parts Melted 1 | . 1 . . Heat Transferred 703 | . 555 . 148 Parts Sabotaged . | . . . . Parts Stolen . | . . . . Parts Stripped . | . . . . Power Chain Reactions . | . . . . Alert | -11 -10 -10 -10 ------- Run | Yrd Mat Min Sub Peak Influence 226 | . 226 136 . Initial 58 | . . 58 . Average 85 | . 80 135 . Maximum Alert Level 1 | . 1 . . Low Security (%) 98 | 100 98 100 . Level 1 1 | . 1 . . Level 2 . | . . . . Level 3 . | . . . . Level 4 . | . . . . Level 5 . | . . . . High Security . | . . . . Max Security . | . . . . Squads Dispatched 2 | . 2 . . Investigation . | . . . . Extermination . | . . . . Reinforcement 2 | . 2 . . Assault . | . . . . Garrison . | . . . . Intercept . | . . . . Searches Triggered . | . . . . Construction Impeded . | . . . . Haulers Reinforced . | . . . . Active Scanning Responses . | . . . . Cargo Convoy Interrupts . | . . . . Stealth | -11 -10 -10 -10 --------- Run | Yrd Mat Min Sub Distress Signals 1 | . 1 . . Communications Jammed . | . . . . Distress Signals . | . . . . Times Spotted 31 | . 18 1 12 Peak Tracking Total 9 | . 3 1 9 Tactical Retreats 4 | . 4 . . Traps | -11 -10 -10 -10 ------- Run | Yrd Mat Min Sub Traps Triggered . | . . . . Indirectly . | . . . . Trap Hack Attempts . | . . . . Triggered . | . . . . Disarmed . | . . . . Reprogrammed . | . . . . Reused . | . . . . Traps Extracted . | . . . . Installed . | . . . . Triggered . | . . . . Machines | -11 -10 -10 -10 ---------- Run | Yrd Mat Min Sub Machines Disabled 1 | . 1 . . Max in Single Turn 1 | . 1 . . Machines Repaired . | . . . . Machines Dismantled . | . . . . Machines Sabotaged . | . . . . Overloaded Fab Kills . | . . . . Hacking | -11 -10 -10 -10 --------- Run | Yrd Mat Min Sub Machines Accessed 7 | . 7 . . Terminals 4 | . 4 . . Fabricators . | . . . . Repair Stations 1 | . 1 . . Recycling Units 2 | . 2 . . Scanalyzers . | . . . . Garrison Access . | . . . . Total Hacks 17 | . 17 . . Successful 10 | . 10 . . Failed 7 | . 7 . . Catastrophic 1 | . 1 . . Database Lockouts . | . . . . Manual . | . . . . Terminals 9 | . 9 . . Fabricators . | . . . . Repair Stations 3 | . 3 . . Recycling Units 5 | . 5 . . Scanalyzers . | . . . . Garrison Access . | . . . . Terminal Hacks 5 | . 5 . . Dispatch Records 1 | . 1 . . Maintenance Status 1 | . 1 . . Security Status 1 | . 1 . . Registered Prototypes 1 | . 1 . . Zone Layout 1 | . 1 . . Fabricator Hacks . | . . . . Repair Station Hacks 2 | . 2 . . Scan Component 1 | . 1 . . Repair 1 | . 1 . . Recycling Unit Hacks 3 | . 3 . . Recycle Component 1 | . 1 . . Process 1 | . 1 . . Report Inventory 1 | . 1 . . Scanalyzer . | . . . . Garrison Access Hacks . | . . . . Unauthorized Hacks . | . . . . Terminals . | . . . . Fabricators . | . . . . Repair Stations . | . . . . Recycling Units . | . . . . Scanalyzers . | . . . . Garrison Access . | . . . . Data Cores Recovered . | . . . . Used . | . . . . Hacking Detections 7 | . 7 . . Full Trace Events . | . . . . Feedback Events . | . . . . Feedback Blocked . | . . . . Robot Schematics Acquired . | . . . . Robots Built . | . . . . Authchips . | . . . . Time . | . . . . Total Robot Build Rating . | . . . . Part Schematics Acquired . | . . . . Parts Built . | . . . . Authchips . | . . . . Time . | . . . . Total Part Build Rating . | . . . . Parts Repaired 1 | . 1 . . Time 26 | . 26 . . Parts Recycled 1 | . 1 . . Recycled Matter 81 | . 81 . . Retrieved Matter . | . . . . Retrieved Components . | . . . . Parts Scanalyzed . | . . . . Part Schematics Acquired . | . . . . Parts Damaged . | . . . . Bothacking | -11 -10 -10 -10 ------------ Run | Yrd Mat Min Sub Used RIF Installer . | . . . . Robots Hacked . | . . . . Non-combat . | . . . . Combat . | . . . . Robot Hacks Applied . | . . . . Relay Couplers Released . | . . . . Fabnet Peak Effective % . | . . . . Robots Rewired . | . . . . Allies Hacked . | . . . . Hacks Repelled . | . . . . Allies | -11 -10 -10 -10 -------- Run | Yrd Mat Min Sub Total Allies . | . . . . Largest Group . | . . . . Highest-Rated Group . | . . . . Highest-Rated Ally . | . . . . Total Orders . | . . . . Ally Attacks . | . . . . Total Damage . | . . . . Kills . | . . . . Allies Corrupted . | . . . . Allies Melted . | . . . . Intel | -11 -10 -10 -10 ------- Run | Yrd Mat Min Sub Robot Analysis Total . | . . . . Derelict Logs Recovered 1 | . . . 1 Drone Launches . | . . . . Drone Recoveries . | . . . . Exploration | -11 -10 -10 -10 ------------- Run | Yrd Mat Min Sub Turns Passed 2002 | 136 1352 345 169 Spaces Moved 1346 | 81 826 316 123 Core 9 | 8 . . 1 Treads 575 | 73 502 . . Legs . | . . . . Wheels 762 | . 324 316 122 Hover . | . . . . Flight . | . . . . Fastest Speed 50 | 50 105 105 105 Average Speed 128 | 149 138 105 111 Slowest Speed 500 | 160 160 105 500 Overloaded Moves . | . . . . Propulsion Burnouts . | . . . . Robots Hopped . | . . . . Cave-ins Triggered . | . . . . Exploration Rate (%) 40 | 6 92 51 11 Regions Visited 3 Branch Regions 2 Pre-discovered Areas 1 | . . . 1 Known Exits Taken 2 | . 1 1 . Unknown Exits Taken 1 | 1 . . . Scrap Searched 1 | . . 1 . Spaces Dug 6 | . . . 6 Terrain Destroyed 68 | . 21 16 31 Melee . | . . . . Projectile . | . . . . AOE 68 | . 21 16 31 Terrain Rammed . | . . . . Walls Destroyed . | . . . . Machines Disabled . | . . . . Actions | -11 -10 -10 -10 --------- Run | Yrd Mat Min Sub Total 1540 | 96 974 326 144 Wait 72 | . 72 . . Move 1343 | 80 825 315 123 Hop . | . . . . Pick Up 36 | 9 22 3 2 Fast Attach . | . . . . Attach 15 | 6 6 . 3 Detach 1 | . 1 . . Swap 9 | . 6 . 3 Drop 13 | . 8 2 3 Fire 42 | . 30 2 10 Melee 3 | . 3 . . Ram . | . . . . Kick . | . . . . Crush 2 | 1 1 . . Escape Stasis . | . . . . Rewire 4 | . . 4 . Trap . | . . . . Miscellaneous . | . . . . Route ------- -11/Scrapyard -10/Materials (discovered 5 exits: *Mat x3 / *Min x2) -10/Mines -10/Subcaves History --------- Turn | Location | Event 55 | -11/Scrapyard | Discovered new exit (range 16) 137 | -11/Scrapyard | Entered Materials 286 | -10/Materials | Discovered new exit (range 7) 307 | -10/Materials | Build established: Mutant 649 | -10/Materials | Repaired Ion Engine 749 | -10/Materials | Discovered new exit (range 5) 758 | -10/Materials | Identified exit to Materials 1080 | -10/Materials | Discovered exit to Materials (range 10) 1315 | -10/Materials | Discovered exit to Materials (range 6) 1372 | -10/Materials | Discovered new exit (range 14) 1476 | -10/Materials | Identified exit to Mines 1489 | -10/Materials | Entered Mines 1779 | -10/Mines | Discovered new exit (range 6) 1786 | -10/Mines | Identified exit to Subcaves 1808 | -10/Mines | Assembled infested the area 1809 | -10/Mines | YI-UF0 nonchalantly dropped a Grenade Launcher on the ground 1834 | -10/Mines | Entered Subcaves 1836 | -10/Subcaves | Learned location of Recycling (-8) 1870 | -10/Subcaves | Shifting Twisted Machinery released Humpback 1880 | -10/Subcaves | Shifting Twisted Machinery released Mak. Spear 1909 | -10/Subcaves | Ambushed by swarm of Subdwellers 1911 | -10/Subcaves | Ambushed by Subdwellers from Twisted Machinery 1911 | -10/Subcaves | Ambushed by Subdwellers from Twisted Machinery 1911 | -10/Subcaves | Ambushed by Subdwellers from Twisted Machinery 1911 | -10/Subcaves | Ambushed by Subdwellers from Twisted Machinery 1929 | -10/Subcaves | Core integrity fell below 50% 1962 | -10/Subcaves | Lost 4 allies 1998 | -10/Subcaves | Core integrity fell below 20% 2003 | -10/Subcaves | Destroyed by BJ-AHA(R) with Subdweller Beam Cannon Last Messages --------------- Acquired 24 matter. 5T-KGS(R) affixes Scrap Shield Fragment to Scrap Shield. Rocket Launcher destroyed. BJ-AHA(R) affixes Scrap Shield Fragment to Scrap Shield. 8B-49D(R) affixes Scrap Shield Fragment to Scrap Shield. SR-MNI(R) affixes Scrap Shield Fragment to Scrap Shield. Ion Engine destroyed. The unstable cave ceiling collapses. Imp. Light Cannon destroyed. B9-AKH(R) emerges from concealment. 8B-49D(R) affixes Scrap Shield Fragment to Scrap Shield. 8B-49D(R) destroyed. Subatomizers dissect the Disposable Heat Sink. Arm. Wheel destroyed. Ion Engine destroyed. Map ----- +----------------------------------------------------+ | ??????????????????## #??????????????????? | | ???????????????#### """" #??????????????????? | | ??????????????## !&=[*## ##?????????????????? | | ??????????????# ==%*!#" #?????????????????? | | ??????????????# %!% #" ##????????????????? | | ?????????????## |[!&## ##???????????????? | | ?????????????# !!% ## #???????????????? | | ???????????????# % !%& #???????????????? | | ????????????????# ! =# #???????????????? | | ????????????????## = % ##??????????????? | | ?????????????????## ##?????????????? | | ??????????????? # # #????? ## ??? | | ??????????????## "## ##???? ??? | | ???????????????# "?### ###?# ?? | | ???????????????## "???# ## ? | | ????????????????## ???# #??? | | ?????????????????# ???# #??? | | ???????????????### ??####### ###? | | ???????????????# ????????# #? | | ???????????????# ???????## #? | | ????????????????# #??????# #? | | ??????????????### ##???## ### #? | | ??????????????# #???# #### #? | | ????????????????# ##??# ### ?? | | ?????????????????# ##?## ## ##??? | | ?????????????????# @ ##?## #?####???? | | ?????????????????# #??# #????????? | | ?????????????????## #??### ####?????? | | ??????????????????## #????# ## | | ???????????????????## #???## | | ????????????????????## RR##?## | | ?????????????????????## R ### ## # | | ??????????????????????# R ##? # | | ??????????????????????# ##??? | | ?????????????????????# #####???? | | ?????????????????? #????????? ## | | ???????????????# ### #?????????##? | | ???????????????# ??## ?????????????? # | | ???????????????## ???## ??????????????? | | ????????????????# ##????# ?????????????? | | ????????????????## #??????# ????????????? | | ?????????????????###???????? ???????????? | | ???????????????????????????? ??????????? | | ???????????????????????????? ?????????? | | ???????????????????????????? ??????????? | | ???????????????????????????? ##???????????? | | ???????????????????????????? ?????????????? | | ???????????????????????????? ???????????????? | | ?????????????????????????????????????????????? | | ?????????????????????????????????????????????? | +----------------------------------------------------+ Best States ------------- Heat Dissipation 25 Energy Generation 10 Energy Capacity 250 Matter Stores 300 Matter Capacity 300 Sight Range 16 Terrain Scan Density 10 Evasion (%) 40 Recoil Reduction 2 Item Schematics ----------------- None Robot Schematics ------------------ None Fabricated ------------ Nothing Alien Tech Used ----------------- None Achievements -------------- Backstab Challenges ------------ None Game ------ Seed AlertHardenedTreads Manual? 0 Play Time 00:32:17 Cumulative 2.6 hours Start 2024.07.07 @ 13:15:23 End 2024.07.07 @ 20:02:09 Sessions 3 Manual Loads 0 Difficulty Rogue Special Mode None Game No. 5 Rogue 5 Adventurer 0 Explorer 0 Win Type - Total 0 Types 0/0/0/0/0/0/0/0/0 Lore% 1 Gallery% 4 Achievement% 4 Wizard Run 0 Options --------- Layout 1 ASCII 0 Keyboard 0 Movement Arrows Keybinds 0 Fullscreen 1 Font 28/Dina Map View 50x43 Zoom Use 0% Tactical HUD 0 Map Filters NONE Filters NONE Steam 1 RUN: c5500d94-9322-4022-bd1e-f7943429f359